fUSD/lending_fUSD_20250716
["ID","MTS","AMOUNT","RATE_DAILY","PERIOD"]
[372503735,1752663167809,-2588.11,0.00023287,2]
[372503736,1752663167819,-460.0,0.00023287,2]
[372503737,1752663167829,-1423.44,0.00023287,2]
[372503738,1752663167839,-2529.28,0.00023287,2]
[372503739,1752663167849,-460.0,0.00023287,2]
[372503740,1752663167859,-460.0,0.00023287,2]
[372503741,1752663167869,-499.91,0.00023287,2]
[372503742,1752663167879,-1539.06,0.00023287,2]
[372503743,1752663167890,-460.0,0.00023287,2]
[372503744,1752663167900,-1099.63,0.00023287,2]
[372503745,1752663167911,-1405.9,0.00023287,2]
[372503746,1752663167921,-460.0,0.00023287,2]
[372503747,1752663167931,-851.53,0.00023287,2]
[372503748,1752663167940,-3553.18,0.00023287,2]
[372503749,1752663167949,-782.81,0.00023287,2]
[372503750,1752663167959,-540.25,0.00023287,2]
[372503751,1752663167969,-1813.38,0.00023287,2]
[372503752,1752663167979,-460.0,0.00023287,2]
[372503753,1752663167989,-3147.54,0.00023287,2]
[372503754,1752663167999,-1440.52,0.00023287,2]
[372503755,1752663168009,-859.58,0.00023287,2]
[372503756,1752663168019,-1141.87,0.00023287,2]
[372503757,1752663168029,-1810.64,0.00023287,2]
[372503758,1752663168040,-3032.38,0.00023287,2]
[372503759,1752663168049,-460.0,0.00023287,2]
[372503760,1752663168060,-460.0,0.00023287,2]
[372503761,1752663168071,-460.0,0.00023287,2]
[372503762,1752663168082,-853.73,0.00023287,2]
[372503763,1752663168092,-496.87,0.00023287,2]
[372503764,1752663168102,-525.43,0.00023287,2]
[372503765,1752663168112,-1417.02,0.00023287,2]
[372503766,1752663168122,-460.0,0.00023287,2]
[372503767,1752663168132,-2023.67,0.00023287,2]
[372503768,1752663168143,-2884.5,0.00023287,2]
[372503769,1752663168153,-460.0,0.00023287,2]
[372503770,1752663168163,-3089.316035,0.00023287,2]
[372503771,1752663168173,-645.68,0.00023287,2]
[372503772,1752663168185,-488.41304126,0.00023287,2]
[372503773,1752663168195,-460.0,0.00023287,2]
[372503774,1752663168206,-2243.27,0.00023287,2]
[372503775,1752663168221,-3447.716716,0.00023287,2]
[372503776,1752663168231,-460.0,0.00023287,2]
[372503777,1752663168241,-1160.26,0.00023287,2]
[372503778,1752663168251,-1094.15,0.00023287,2]
[372503779,1752663168263,-1128.01,0.00023287,2]
[372503780,1752663168273,-465.62,0.00023287,2]
[372503781,1752663168284,-730.18,0.00023287,2]
[372503782,1752663168295,-3424.477153,0.00023287,2]
[372503783,1752663168306,-1203.47,0.00023287,2]
[372503784,1752663168315,-642.34,0.00023287,2]
[372503785,1752663168325,-1314.79,0.00023287,2]
[372503786,1752663168334,-1198.89,0.00023287,2]
[372503787,1752663168344,-887.6,0.00023287,2]
[372503788,1752663168354,-382.24460787,0.00023287,2]
[372503789,1752663168365,-1132.15,0.00023287,2]
[372503790,1752663168375,-1011.16,0.00023287,2]
[372503791,1752663168385,-903.29,0.00023287,2]
[372503792,1752663168395,-460.0,0.00023287,2]
[372503793,1752663168404,-2880.76,0.00023287,2]
[372503794,1752663168415,-994.92,0.00023287,2]
[372503795,1752663168425,-1024.12,0.00023287,2]
[372503796,1752663168435,-460.0,0.00023287,2]
[372503797,1752663168445,-684.79,0.00023287,2]
[372503798,1752663168455,-1863.81,0.00023287,2]
[372503799,1752663168465,-460.0,0.00023287,2]
[372503800,1752663168475,-1858.32,0.00023287,2]
[372503801,1752663168484,-460.0,0.00023287,2]
[372503802,1752663168493,-3055.14,0.00023287,2]
[372503803,1752663168503,-570.24,0.00023287,2]
[372503804,1752663168512,-612.03,0.00023287,2]
[372503805,1752663168522,-460.0,0.00023287,2]
[372503806,1752663168532,-3225.29,0.00023287,2]
[372503807,1752663168542,-1452.54,0.00023287,2]
[372503808,1752663168553,-799.53,0.00023287,2]
[372503809,1752663168563,-2151.45,0.00023287,2]
[372503810,1752663168573,-708.79,0.00023287,2]
[372503811,1752663168584,-967.0,0.00023287,2]
[372503812,1752663168593,-460.0,0.00023287,2]
[372503813,1752663168603,-909.92,0.00023287,2]
[372503814,1752663168614,-460.0,0.00023287,2]
[372503815,1752663168625,-574.66,0.00023287,2]
[372503816,1752663168636,-18257.49,0.00023287,2]
[372503817,1752663168645,-460.0,0.00023287,2]
[372503818,1752663168656,-1366.55,0.00023287,2]
[372503819,1752663168667,-4396.18,0.00023287,2]
[372503820,1752663168677,-2712.48,0.00023287,2]
[372503821,1752663168689,-1243.92,0.00023287,2]
[372503822,1752663168699,-530.09,0.00023287,2]
[372503823,1752663168710,-5268.98,0.00023287,2]
[372503824,1752663168721,-661.22,0.00023287,2]
[372503825,1752663168731,-558.0,0.00023287,2]
[372503826,1752663168741,-1950.3,0.00023287,2]
[372503827,1752663168751,-802.89,0.00023287,2]
[372503828,1752663168761,-1009.57,0.00023287,2]
[372503829,1752663168771,-548.97,0.00023287,2]
[372503830,1752663168781,-806.79,0.00023287,2]
[372503831,1752663168791,-1016.81,0.00023287,2]
[372503832,1752663168801,-460.0,0.00023287,2]
[372503833,1752663168811,-716.51,0.00023287,2]
[372503834,1752663168822,-1807.77,0.00023287,2]
[372503835,1752663168832,-3401.52,0.00023287,2]
[372503836,1752663168843,-460.0,0.00023287,2]
[372503837,1752663168853,-460.0,0.00023287,2]
[372503838,1752663168864,-1577.99,0.00023287,2]
[372503839,1752663168874,-460.0,0.00023287,2]
[372503840,1752663168885,-460.0,0.00023287,2]
[372503841,1752663168896,-1090.35,0.00023287,2]
[372503842,1752663168907,-2180.23,0.00023287,2]
[372503843,1752663168916,-993.34,0.00023287,2]
[372503844,1752663168926,-2435.35,0.00023287,2]
[372503845,1752663168937,-9495.76,0.00023287,2]
[372503846,1752663168947,-6460.58,0.00023287,2]
[372503847,1752663168958,-932.03,0.00023287,2]
[372503848,1752663168969,-2366.57,0.00023287,2]
[372503849,1752663168979,-635.82,0.00023287,2]
[372503850,1752663168989,-1384.4,0.00023287,2]
[372503851,1752663169000,-460.0,0.00023287,2]
[372503852,1752663169010,-460.0,0.00023287,2]
[372503853,1752663169021,-2004.78,0.00023287,2]
[372503854,1752663169033,-1405.03,0.00023287,2]
[372503855,1752663169044,-3219.3,0.00023287,2]
[372503856,1752663169056,-689.97,0.00023287,2]
[372503857,1752663169067,-592.17404049,0.00023287,2]
[372503858,1752663169077,-460.0,0.00023287,2]
[372503859,1752663169087,-660.19,0.00023287,2]
[372503860,1752663169099,-460.0,0.00023287,2]
[372503861,1752663169109,-460.0,0.00023287,2]
[372503862,1752663169120,-460.0,0.00023287,2]
[372503863,1752663169131,-4073.22,0.00023287,2]
[372503864,1752663169141,-829.45,0.00023287,2]
[372503865,1752663169151,-1482.8,0.00023287,2]
[372503866,1752663169162,-1224.36,0.00023287,2]
[372503867,1752663169173,-1186.85,0.00023287,2]
[372503868,1752663169184,-1846.22,0.00023287,2]
[372503869,1752663169194,-2508.45,0.00023287,2]
[372503870,1752663169204,-576.68072357,0.00023287,2]
[372503871,1752663169218,-571.95,0.00023287,2]
[372503872,1752663169228,-605.83,0.00023287,2]
[372503873,1752663169238,-1023.53,0.00023287,2]
[372503874,1752663169248,-2046.51,0.00023287,2]
[372503875,1752663169259,-5496.82,0.00023287,2]
[372503876,1752663169270,-845.91,0.00023287,2]
[372503877,1752663169281,-1729.36,0.00023287,2]
[372503878,1752663169293,-460.0,0.00023287,2]
[372503879,1752663169304,-1153.38,0.00023287,2]
[372503880,1752663169314,-1471.4,0.00023287,2]
[372503881,1752663169323,-460.0,0.00023287,2]
[372503882,1752663169334,-25686.63,0.00023287,2]
[372503883,1752663169344,-2265.87,0.00023287,2]
[372503884,1752663169356,-1804.24,0.00023287,2]
[372503885,1752663169366,-801.55,0.00023287,2]
[372503886,1752663169376,-667.91,0.00023287,2]
[372503887,1752663169387,-460.0,0.00023287,2]
[372503888,1752663169397,-460.0,0.00023287,2]
[372503889,1752663169407,-460.0,0.00023287,2]
[372503890,1752663169417,-460.0,0.00023287,2]
[372503891,1752663169428,-720.01,0.00023287,2]
[372503892,1752663169439,-460.0,0.00023287,2]
[372503893,1752663169449,-912.12,0.00023287,2]
[372503894,1752663169459,-2378.43,0.00023287,2]
[372503895,1752663169470,-1488.97,0.00023287,2]
[372503896,1752663169481,-693.6,0.00023287,2]
[372503897,1752663169492,-568.78,0.00023287,2]
[372503898,1752663169504,-2336.76,0.00023287,2]
[372503899,1752663169514,-1662.59,0.00023287,2]
[372503900,1752663169524,-834.17,0.00023287,2]
[372503901,1752663169535,-3608.17,0.00023287,2]
[372503902,1752663169545,-578.22,0.00023287,2]
[372503903,1752663169555,-465.11,0.00023287,2]
[372503904,1752663169565,-590.67,0.00023287,2]
[372503905,1752663169576,-1551.69,0.00023287,2]
[372503906,1752663169588,-722.56,0.00023287,2]
[372503907,1752663169598,-460.0,0.00023287,2]
[372503908,1752663169608,-468.55,0.00023287,2]
[372503909,1752663169618,-4023.17,0.00023287,2]
[372503910,1752663169628,-517.03,0.00023287,2]
[372503911,1752663169637,-460.0,0.00023287,2]
[372503912,1752663169648,-460.0,0.00023287,2]
[372503913,1752663169658,-3644.36,0.00023287,2]
[372503914,1752663169667,-546.65,0.00023287,2]
[372503915,1752663169677,-4710.56,0.00023287,2]
[372503916,1752663169687,-1375.33,0.00023287,2]
[372503917,1752663169698,-3437.5,0.00023287,2]
[372503918,1752663169708,-460.0,0.00023287,2]
[372503919,1752663169718,-1086.94,0.00023287,2]
[372503920,1752663169728,-1882.13,0.00023287,2]
[372503921,1752663169738,-533.59,0.00023287,2]
[372503922,1752663169748,-819.82,0.00023287,2]
[372503923,1752663169758,-846.81,0.00023287,2]
[372503924,1752663169767,-10473.68,0.00023287,2]
[372503925,1752663169778,-956.97,0.00023287,2]
[372503926,1752663169788,-460.0,0.00023287,2]
[372503927,1752663169798,-1075.31,0.00023287,2]
[372503928,1752663169808,-10262.44,0.00023287,2]
[372503929,1752663169819,-460.0,0.00023287,2]
[372503930,1752663169829,-927.79,0.00023287,2]
[372503931,1752663169839,-9009.22,0.00023287,2]
[372503932,1752663169849,-7641.39,0.00023287,2]
[372503933,1752663169860,-1305.47,0.00023287,2]
[372503934,1752663169870,-6402.79,0.00023287,2]
[372503935,1752663169880,-999.84,0.00023287,2]
[372503936,1752663169890,-1048.05,0.00023287,2]
[372503937,1752663169901,-1145.26,0.00023287,2]
[372503938,1752663169911,-7522.89,0.00023287,2]
[372503939,1752663169921,-1085.51,0.00023287,2]
[372503940,1752663169931,-460.0,0.00023287,2]
[372503941,1752663169941,-985.55,0.00023287,2]
[372503942,1752663169951,-1618.81,0.00023287,2]
[372503943,1752663169963,-7023.53,0.00023287,2]
[372503944,1752663169973,-460.0,0.00023287,2]
[372503945,1752663169984,-699.45,0.00023287,2]
[372503946,1752663169995,-4907.65,0.00023287,2]
[372503947,1752663170006,-460.0,0.00023287,2]
[372503948,1752663170016,-460.0,0.00023287,2]
[372503949,1752663170026,-4103.12,0.00023287,2]
[372503950,1752663170036,-805.39,0.00023287,2]
[372503951,1752663170047,-587.29,0.00023287,2]
[372503952,1752663170057,-1101.08,0.00023287,2]
[372503953,1752663170068,-2334.85,0.00023287,2]
[372503954,1752663170079,-1300.92,0.00023287,2]
[372503955,1752663170089,-1839.74,0.00023287,2]
[372503956,1752663170100,-7022.82,0.00023287,2]
[372503957,1752663170110,-460.0,0.00023287,2]
[372503958,1752663170120,-460.0,0.00023287,2]
[372503959,1752663170131,-460.0,0.00023287,2]
[372503960,1752663170141,-460.0,0.00023287,2]
[372503961,1752663170151,-574.7,0.00023287,2]
[372503962,1752663170161,-460.0,0.00023287,2]
[372503963,1752663170171,-4783.75,0.00023287,2]
[372503964,1752663170181,-11831.05,0.00023287,2]
[372503965,1752663170192,-5175.99,0.00023287,2]
[372503966,1752663170202,-460.0,0.00023287,2]
[372503967,1752663170213,-2063.66,0.00023287,2]
[372503968,1752663170224,-12650.62,0.00023287,2]
[372503969,1752663170234,-787.25,0.00023287,2]
[372503970,1752663170244,-641.88,0.00023287,2]
[372503971,1752663170255,-1721.09,0.00023287,2]
[372503972,1752663170266,-609.0,0.00023287,2]
[372503973,1752663170276,-460.0,0.00023287,2]
[372503974,1752663170288,-2321.93,0.00023287,2]
[372503975,1752663170300,-1046.05,0.00023287,2]
[372503976,1752663170310,-2399.4,0.00023287,2]
[372503977,1752663170320,-1196.04,0.00023287,2]
[372503978,1752663170330,-5256.36,0.00023287,2]
[372503979,1752663170340,-460.0,0.00023287,2]
[372503980,1752663170350,-460.0,0.00023287,2]
[372503981,1752663170360,-1199.05,0.00023287,2]
[372503982,1752663170370,-570.67,0.00023287,2]
[372503983,1752663170382,-1873.93,0.00023287,2]
[372503984,1752663170392,-608.82,0.00023287,2]
[372503985,1752663170403,-6048.28,0.00023287,2]
[372503986,1752663170414,-647.56,0.00023287,2]
[372503987,1752663170425,-460.0,0.00023287,2]
[372503988,1752663170437,-25853.72,0.00023287,2]
[372503989,1752663170447,-3826.55,0.00023287,2]
[372503990,1752663170458,-679.82,0.00023287,2]
[372503991,1752663170469,-4984.48,0.00023287,2]
[372503992,1752663170480,-644.0,0.00023287,2]
[372503993,1752663170490,-1010.1,0.00023287,2]
[372503994,1752663170502,-587.74,0.00023287,2]
[372503995,1752663170513,-1216.26,0.00023287,2]
[372503996,1752663170523,-2657.96,0.00023287,2]
[372503997,1752663170534,-2675.67,0.00023287,2]
[372503998,1752663170544,-2707.25,0.00023287,2]
[372503999,1752663170554,-1531.63,0.00023287,2]
[372504000,1752663170565,-460.0,0.00023287,2]
[372504001,1752663170576,-807.97,0.00023287,2]
[372504002,1752663170587,-460.0,0.00023287,2]
[372504003,1752663170597,-10398.73,0.00023287,2]
[372504004,1752663170607,-2892.99,0.00023287,2]
[372504005,1752663170618,-3663.1,0.00023287,2]
[372504006,1752663170630,-460.0,0.00023287,2]
[372504007,1752663170640,-6155.9,0.00023287,2]
[372504008,1752663170651,-2417.79,0.00023287,2]
[372504009,1752663170661,-783.37,0.00023287,2]
[372504010,1752663170673,-1645.27,0.00023287,2]
[372504011,1752663170683,-5760.76,0.00023287,2]
[372504012,1752663170694,-2977.53,0.00023287,2]
[372504013,1752663170704,-1156.71,0.00023287,2]
[372504014,1752663170714,-4994.77,0.00023287,2]
[372504015,1752663170724,-2707.06,0.00023287,2]
[372504016,1752663170735,-828.48,0.00023287,2]
[372504017,1752663170745,-1737.41,0.00023287,2]
[372504018,1752663170755,-1860.1,0.00023287,2]
[372504019,1752663170766,-618.42,0.00023287,2]
[372504020,1752663170776,-460.0,0.00023287,2]
[372504021,1752663170786,-697.34,0.00023287,2]
[372504022,1752663170795,-3082.79,0.00023287,2]
[372504023,1752663170806,-460.0,0.00023287,2]
[372504024,1752663170816,-763.37,0.00023287,2]
[372504025,1752663170826,-5360.04,0.00023287,2]
[372504026,1752663170837,-1544.88,0.00023287,2]
[372504027,1752663170847,-532.67,0.00023287,2]
[372504028,1752663170859,-566.67,0.00023287,2]
[372504029,1752663170872,-1351.27,0.00023287,2]
[372504030,1752663170883,-1854.73,0.00023287,2]
[372504031,1752663170894,-6960.91,0.00023287,2]
[372504032,1752663170904,-1871.79,0.00023287,2]
[372504033,1752663170914,-498.31,0.00023287,2]
[372504034,1752663170925,-935.71,0.00023287,2]
[372504035,1752663170936,-2952.62,0.00023287,2]
[372504036,1752663171269,-3727.42,0.00023287,2]
[372504037,1752663171280,-1354.22,0.00023287,2]
[372504038,1752663171291,-1210.46,0.00023287,2]
[372504039,1752663171302,-647.88,0.00023287,2]
[372504040,1752663171312,-460.0,0.00023287,2]
[372504041,1752663171322,-4520.63,0.00023287,2]
[372504042,1752663171332,-460.0,0.00023287,2]
[372504043,1752663171341,-544.05,0.00023287,2]
[372504044,1752663171351,-1562.68,0.00023287,2]
[372504045,1752663171361,-1807.76,0.00023287,2]
[372504046,1752663171371,-804.49,0.00023287,2]
[372504047,1752663171381,-460.0,0.00023287,2]
[372504048,1752663171391,-460.0,0.00023287,2]
[372504049,1752663171401,-1674.69,0.00023287,2]
[372504050,1752663171411,-2967.28,0.00023287,2]
[372504051,1752663171420,-619.88,0.00023287,2]
[372504052,1752663171430,-460.0,0.00023287,2]
[372504053,1752663171441,-1331.59,0.00023287,2]
[372504054,1752663171450,-4930.79,0.00023287,2]
[372504055,1752663171460,-1756.27,0.00023287,2]
[372504056,1752663171470,-460.0,0.00023287,2]
[372504057,1752663171480,-2884.75,0.00023287,2]
[372504058,1752663171490,-1372.2,0.00023287,2]
[372504059,1752663171499,-3471.77,0.00023287,2]
[372504060,1752663171510,-4338.23,0.00023287,2]
[372504061,1752663171520,-1048.9,0.00023287,2]
[372504062,1752663171531,-1304.13,0.00023287,2]
[372504063,1752663171540,-861.69,0.00023287,2]
[372504064,1752663171550,-460.0,0.00023287,2]
[372504065,1752663171560,-5916.53,0.00023287,2]
[372504066,1752663171569,-771.65,0.00023287,2]
[372504067,1752663171579,-2011.92,0.00023287,2]
[372504068,1752663171589,-589.94,0.00023287,2]
[372504069,1752663171599,-469.09,0.00023287,2]
[372504070,1752663171609,-18520.14,0.00023287,2]
[372504071,1752663171618,-1267.95,0.00023287,2]
[372504072,1752663171628,-1896.91,0.00023287,2]
[372504073,1752663171638,-6378.4,0.00023287,2]
[372504074,1752663171648,-624.77,0.00023287,2]
[372504075,1752663171658,-6594.98,0.00023287,2]
[372504076,1752663171668,-4665.3,0.00023287,2]
[372504077,1752663171678,-1113.8,0.00023287,2]
[372504078,1752663171688,-9546.24,0.00023287,2]
[372504079,1752663171697,-4540.32,0.00023287,2]
[372504080,1752663171708,-256.72686398,0.00023287,2]
[372504081,1752663171718,-575.28,0.00023287,2]
[372504082,1752663171728,-1746.59,0.00023287,2]
[372504083,1752663171738,-460.0,0.00023287,2]
[372504084,1752663171748,-2605.38,0.00023287,2]
[372504085,1752663171757,-484.92,0.00023287,2]
[372504086,1752663171767,-4658.6,0.00023287,2]
[372504087,1752663171777,-2501.59,0.00023287,2]
[372504088,1752663171787,-570.76,0.00023287,2]
[372504089,1752663171797,-2763.84,0.00023287,2]
[372504090,1752663171807,-7774.07,0.00023287,2]
[372504091,1752663171816,-5927.89,0.00023287,2]
[372504092,1752663171826,-3322.94,0.00023287,2]
[372504093,1752663171836,-460.0,0.00023287,2]
[372504094,1752663171846,-460.0,0.00023287,2]
[372504095,1752663171855,-7494.33,0.00023287,2]
[372504096,1752663171865,-16963.12,0.00023287,2]
[372504097,1752663171875,-1367.25,0.00023287,2]
[372504098,1752663171884,-2065.11,0.00023287,2]
[372504099,1752663171894,-5953.02,0.00023287,2]
[372504100,1752663171904,-3212.42,0.00023287,2]
[372504101,1752663171914,-21344.53,0.00023287,2]
[372504102,1752663171924,-1014.23,0.00023287,2]
[372504103,1752663171935,-5650.16,0.00023287,2]
[372504104,1752663171945,-476.32,0.00023287,2]
[372504105,1752663171955,-2587.67,0.00023287,2]
[372504106,1752663171965,-5415.43,0.00023287,2]
[372504107,1752663171975,-4486.27,0.00023287,2]
[372504108,1752663171985,-1011.46,0.00023287,2]
[372504109,1752663171995,-635.25,0.00023287,2]
[372504110,1752663172005,-1538.9,0.00023287,2]
[372504111,1752663172015,-2685.11,0.00023287,2]
[372504112,1752663172025,-2744.51,0.00023287,2]
[372504113,1752663172036,-1047.77,0.00023287,2]
[372504114,1752663172046,-460.0,0.00023287,2]
[372504115,1752663172056,-802.61,0.00023287,2]
[372504116,1752663172066,-1189.82,0.00023287,2]
[372504117,1752663172075,-167.81122,0.00023287,2]
[372504118,1752663172085,-460.0,0.00023287,2]
[372504119,1752663172095,-573.37,0.00023287,2]
[372504120,1752663172105,-8020.77,0.00023287,2]
[372504121,1752663172115,-5279.75,0.00023287,2]
[372504122,1752663172125,-1356.57,0.00023287,2]
[372504123,1752663172134,-1204.94,0.00023287,2]
[372504124,1752663172144,-32484.29,0.00023287,2]
[372504125,1752663172153,-1007.81,0.00023287,2]
[372504126,1752663172163,-504.66,0.00023287,2]
[372504127,1752663172173,-676.02,0.00023287,2]
[372504128,1752663172182,-3572.47,0.00023287,2]
[372504129,1752663172193,-460.0,0.00023287,2]
[372504130,1752663172203,-460.0,0.00023287,2]
[372504131,1752663172214,-561.80628719,0.00023287,2]
[372504132,1752663172225,-1061.14,0.00023287,2]
[372504133,1752663172234,-19195.94,0.00023287,2]
[372504134,1752663172243,-684.08,0.00023287,2]
[372504135,1752663172256,-3262.8,0.00023287,2]
[372504136,1752663172267,-460.0,0.00023287,2]
[372504137,1752663172277,-612.3,0.00023287,2]
[372504138,1752663172288,-1225.77,0.00023287,2]
[372504139,1752663172299,-1692.42,0.00023287,2]
[372504140,1752663172308,-14730.83,0.00023287,2]
[372504141,1752663172319,-5682.68,0.00023287,2]
[372504142,1752663172331,-3566.5,0.00023287,2]
[372504143,1752663172341,-460.0,0.00023287,2]
[372504144,1752663172351,-22442.02,0.00023287,2]
[372504145,1752663172362,-628.29,0.00023287,2]
[372504146,1752663172373,-3509.68,0.00023287,2]
[372504147,1752663172384,-460.0,0.00023287,2]
[372504148,1752663172394,-686.39,0.00023287,2]
[372504149,1752663172405,-1807.34,0.00023287,2]
[372504150,1752663172415,-460.0,0.00023287,2]
[372504151,1752663172425,-1598.24,0.00023287,2]
[372504152,1752663172435,-460.0,0.00023287,2]
[372504153,1752663172446,-4110.38,0.00023287,2]
[372504154,1752663172456,-1745.31,0.00023287,2]
[372504155,1752663172466,-949.55,0.00023287,2]
[372504156,1752663172477,-1841.85,0.00023287,2]
[372504157,1752663172487,-2472.8,0.00023287,2]
[372504158,1752663172498,-4959.45,0.00023287,2]
[372504159,1752663172507,-3547.98,0.00023287,2]
[372504160,1752663172517,-58694.54,0.00023287,2]
[372504161,1752663172527,-5628.71,0.00023287,2]
[372504162,1752663172536,-1447.83,0.00023287,2]
[372504163,1752663172546,-2993.43,0.00023287,2]
[372504164,1752663172556,-460.0,0.00023287,2]
[372504165,1752663172565,-603.39,0.00023287,2]
[372504166,1752663172575,-1096.81,0.00023287,2]
[372504167,1752663172584,-2285.96,0.00023287,2]
[372504168,1752663172594,-483.36,0.00023287,2]
[372504169,1752663172604,-460.0,0.00023287,2]
[372504170,1752663172615,-1319.97,0.00023287,2]
[372504171,1752663172625,-5147.01,0.00023287,2]
[372504172,1752663172636,-1144.35,0.00023287,2]
[372504173,1752663172647,-8010.56,0.00023287,2]
[372504174,1752663172659,-1683.09,0.00023287,2]
[372504175,1752663172670,-639.1,0.00023287,2]
[372504176,1752663172680,-739.23,0.00023287,2]
[372504177,1752663172690,-460.0,0.00023287,2]
[372504178,1752663172700,-6205.36,0.00023287,2]
[372504179,1752663172712,-510.71,0.00023287,2]
[372504180,1752663172726,-2249.11,0.00023287,2]
[372504181,1752663172736,-4164.71,0.00023287,2]
[372504182,1752663172747,-6769.38,0.00023287,2]
[372504183,1752663172759,-2022.49,0.00023287,2]
[372504184,1752663172770,-1115.74,0.00023287,2]
[372504185,1752663172782,-460.0,0.00023287,2]
[372504186,1752663172792,-460.0,0.00023287,2]
[372504187,1752663172802,-795.42,0.00023287,2]
[372504188,1752663172812,-485.08,0.00023287,2]
[372504189,1752663172823,-2986.83,0.00023287,2]
[372504190,1752663172832,-460.0,0.00023287,2]
[372504191,1752663172842,-830.15,0.00023287,2]
[372504192,1752663172853,-619.04,0.00023287,2]
[372504193,1752663172862,-1181.41,0.00023287,2]
[372504194,1752663172872,-1807.42,0.00023287,2]
[372504195,1752663172882,-460.0,0.00023287,2]
[372504196,1752663172892,-3400.85,0.00023287,2]
[372504197,1752663172901,-460.0,0.00023287,2]
[372504198,1752663172911,-2724.38,0.00023287,2]
[372504199,1752663172921,-135275.72,0.00023287,2]
[372504200,1752663172930,-1356.39,0.00023287,2]
[372504201,1752663172941,-3360.53,0.00023287,2]
[372504202,1752663172950,-4311.63,0.00023287,2]
[372504203,1752663172960,-1607.81,0.00023287,2]
[372504204,1752663172972,-469.05,0.00023287,2]
[372504205,1752663172982,-878.69,0.00023287,2]
[372504206,1752663172992,-1218.65,0.00023287,2]
[372504207,1752663173001,-7249.88,0.00023287,2]
[372504208,1752663173013,-10952.53,0.00023287,2]
[372504209,1752663173023,-908.48,0.00023287,2]
[372504210,1752663173032,-2188.41,0.00023287,2]
[372504211,1752663173042,-1585.43,0.00023287,2]
[372504212,1752663173052,-460.0,0.00023287,2]
[372504213,1752663173062,-6933.38,0.00023287,2]
[372504214,1752663173071,-460.0,0.00023287,2]
[372504215,1752663173081,-13647.01,0.00023287,2]
[372504216,1752663173091,-6833.92,0.00023287,2]
[372504217,1752663173101,-7163.36,0.00023287,2]
[372504218,1752663173111,-460.0,0.00023287,2]
[372504219,1752663173121,-5595.33,0.00023287,2]
[372504220,1752663173131,-2582.73,0.00023287,2]
[372504221,1752663173141,-8217.22,0.00023287,2]
[372504222,1752663173163,-4826.81,0.00023287,2]
[372504223,1752663173173,-1673.31,0.00023287,2]
[372504224,1752663173183,-743.27,0.00023287,2]
[372504225,1752663173195,-1251.22,0.00023287,2]
[372504226,1752663173204,-6145.91,0.00023287,2]
[372504227,1752663173218,-1655.82,0.00023287,2]
[372504228,1752663173228,-3760.87,0.00023287,2]
[372504229,1752663173239,-589.02,0.00023287,2]
[372504230,1752663173248,-4288.94,0.00023287,2]
[372504231,1752663173259,-1267.17,0.00023287,2]
[372504232,1752663173269,-13788.05,0.00023287,2]
[372504233,1752663173279,-1974.88,0.00023287,2]
[372504234,1752663173293,-460.0,0.00023287,2]